Cogmind - Beta 13 @@@ ROGUE MODE // 2024.04.02 @ 20:12:10 Player: AndK Result: Destroyed by as-49936 with Assembled Maul Performance ------------- Evolutions (0) 0 Regions Visited (2) 400 Robots Destroyed (9) 45 Value Destroyed (205) 205 Prototype IDs (0) 0 Alien Tech Used (0) 0 Bonus (0) 0 TOTAL SCORE: 650 Bonus ------- None Cogmind --------- Core Integrity 0/250 Matter 235/300 Energy 64/250 System Corruption 11% Temperature Cool (0) Movement Walking (120) Location -10/Mines Parts ------- > --- POWER (1) -------- Ion Engine > --- PROPULSION (2) --- Aluminum Leg Aluminum Leg > --- UTILITY (2) ------ Small Storage Unit Light Armor Plating > --- WEAPON (2) ------- EM Pulse Gun > --- INVENTORY (8) ---- (None) Peak State ------------ > --- POWER ------------ Ion Engine > --- PROPULSION ------- Wheel Wheel > --- UTILITY ---------- Small Storage Unit Terrain Scanner > --- WEAPON ----------- Assault Rifle Light Assault Rifle > --- INVENTORY -------- Ion Engine Aluminum Leg Aluminum Leg Medium Laser [Rating: 7] Favorites ----------- Power Ion Engine Engine Ion Engine Propulsion Wheel Treads Light Treads Leg Aluminum Leg Wheel Wheel Utility Small Storage Unit Device Terrain Scanner Storage Small Storage Unit Protection Light Armor Plating Weapon Assault Rifle Energy Gun EM Pulse Gun Ballistic Gun Assault Rifle Special Weapon Mining Laser Build | -11 -10 -10 ------- Run | Yrd Mat Min Slots Evolved . | . . . Power . | . . . Propulsion . | . . . Utility . | . . . Weapon . | . . . Parts Attached 19 | 9 2 8 Power 3 | 1 1 1 Engine 3 | 1 1 1 Core . | . . . Reactor . | . . . Propulsion 6 | 4 . 2 Treads 2 | 2 . . Leg 2 | . . 2 Wheel 2 | 2 . . Hover . | . . . Flight . | . . . Utility 3 | 1 1 1 Device 1 | . 1 . Storage 1 | 1 . . Processor . | . . . Hackware . | . . . Protection 1 | . . 1 Artifact . | . . . Weapon 7 | 3 . 4 Energy Gun 3 | 1 . 2 Energy Cannon . | . . . Ballistic Gun 2 | 2 . . Ballistic Cannon . | . . . Launcher . | . . . Special Weapon 2 | . . 2 Impact Weapon . | . . . Slashing Weapon . | . . . Piercing Weapon . | . . . Special Melee Weapon . | . . . Unidentified Prototypes . | . . . Parts Lost 8 | . . 8 Power 1 | . . 1 Propulsion 2 | . . 2 Utility 1 | . . 1 Weapon 4 | . . 4 Highest Loss Streak 7 | . . 7 To Critical Strikes . | . . . Average Slot Usage (%) 93 | . 98 81 Engine 13 | . 14 12 Wheel 23 | . 28 14 Device 13 | . 13 13 Storage 14 | . 14 14 Ballistic Gun 26 | . 28 24 Naked Turns . | . . . Heaviest Build 14 | 11 14 14 Greatest Support 20 | 20 20 20 Greatest Overweight (x) 1 | . . 1 Average Overweight (x) . | . . . Largest Inventory Capacity 8 | 8 8 8 Average Capacity 7 | 5 8 8 Most Carried 8 | 5 8 8 Average Carried 5 | 2 5 7 Final Capacity 8 | 8 8 8 Final Carried 8 | 4 8 . Class Distribution -------------------- 100% | Mutant Dominant Class ---------------- Mutant | -10/Materials Mutant | -10/Mines Resources | -11 -10 -10 ----------- Run | Yrd Mat Min Matter Collected 457 | 225 169 63 Remotely . | . . . Salvage Created 272 | . 212 60 Parts 20 | . 15 5 Haulers Intercepted . | . . . Recyclers Shooed . | . . . Parts Field Recycled . | . . . Retrieved Matter . | . . . Parts Self-Destructed . | . . . Prevented . | . . . Kills | -11 -10 -10 ------- Run | Yrd Mat Min Combat Hostiles Destroyed 9 | . 5 4 Guns 9 | . 5 4 Classes Destroyed 4 | . 3 1 Watcher 1 | . 1 . Swarmer 4 | . 1 3 Grunt 4 | . 4 . Assembled 1 | . . 1 Best Kill Streak 3 | . 3 2 Combat Bots Only 2 | . 2 2 Max Kills in Single Turn 1 | . 1 1 Gunslinging . | . . . Exploded . | . . . Melee . | . . . Uniques/NPCs Destroyed . | . . . Combat | -11 -10 -10 -------- Run | Yrd Mat Min Hostile Shots Fired 116 | . 23 93 Missed 43 | . 12 31 Damage Taken 1025 | . 122 903 Core 262 | . 35 227 Absorbed by Shields . | . . . Core Remaining (%) 100 | 100 . . Volleys Fired 45 | . 26 19 Largest 2 | . 2 2 Hottest 80 | . 40 80 Shots Fired 85 | . 52 33 Gun 85 | . 52 33 Cannon . | . . . Launcher . | . . . Special . | . . . Kinetic 83 | . 52 31 Thermal . | . . . Explosive . | . . . Electromagnetic 2 | . . 2 Robot Hit Streak 6 | . 6 6 Robot Miss Streak 3 | . 3 3 Penetration Max . | . . . Secondary Targets 1 | . . 1 Max Gunslinging Chain 1 | . . 1 Shots Hit Robots 47 | . 28 19 Core Hits 21 | . 14 7 Critical Kills . | . . . Critical Parts Destroyed . | . . . Critical Strikes . | . . . Melee Attacks . | . . . Impact . | . . . Slashing . | . . . Piercing . | . . . Sneak Attacks . | . . . Combat Hostiles . | . . . Follow-up Attacks . | . . . Damage Inflicted 510 | . 294 216 Guns 502 | . 294 208 Cannons . | . . . Explosions . | . . . Melee . | . . . Ramming 8 | . . 8 Kinetic 479 | . 294 185 Thermal . | . . . Explosive . | . . . Electromagnetic 23 | . . 23 Impact . | . . . Slashing . | . . . Piercing . | . . . Highest Corruption 11 | . . 11 Average Corruption 7 | . . 7 Corruption Purged . | . . . Corruption Blocked . | . . . Effects 3 | . . 3 Parts Rejected 1 | . . 1 Data Loss (minor) 1 | . . 1 Weapon Failures 1 | . . 1 Overload Shots . | . . . Overflow Damage . | . . . Projectiles . | . . . Explosions . | . . . Melee . | . . . Knockbacks . | . . . Impact . | . . . Kinetic . | . . . Secondary . | . . . Self-Inflicted Damage 3 | . . 3 Shots . | . . . Rammed 3 | . . 3 Targets Rammed 3 | . . 3 Kicked . | . . . Crushed . | . . . Highest Temperature 27 | . 27 10 Average Temperature 12 | . 14 6 Received Heat Transfer 95 | . 75 20 Siege Activations . | . . . Robots Corrupted . | . . . Combat Hostiles . | . . . Parts Fried . | . . . Impact Corruptions . | . . . Robots Melted . | . . . Combat Hostiles . | . . . Parts Melted . | . . . Heat Transferred . | . . . Parts Sabotaged . | . . . Parts Stolen . | . . . Parts Stripped . | . . . Power Chain Reactions . | . . . Alert | -11 -10 -10 ------- Run | Yrd Mat Min Peak Influence 258 | . 258 82 Initial 22 | . . 22 Average 107 | . 144 67 Maximum Alert Level 1 | . 1 . Low Security (%) 84 | 100 74 100 Level 1 15 | . 25 . Level 2 . | . . . Level 3 . | . . . Level 4 . | . . . Level 5 . | . . . High Security . | . . . Max Security . | . . . Squads Dispatched 2 | . 2 . Investigation . | . . . Extermination . | . . . Reinforcement 2 | . 2 . Assault . | . . . Garrison . | . . . Intercept . | . . . Searches Triggered . | . . . Construction Impeded . | . . . Haulers Reinforced . | . . . Active Scanning Responses . | . . . Cargo Convoy Interrupts . | . . . Stealth | -11 -10 -10 --------- Run | Yrd Mat Min Distress Signals . | . . . Communications Jammed . | . . . Distress Signals . | . . . Times Spotted 37 | . 13 24 Peak Tracking Total 19 | . 6 19 Tactical Retreats 2 | . 1 1 Traps | -11 -10 -10 ------- Run | Yrd Mat Min Traps Triggered . | . . . Indirectly . | . . . Trap Hack Attempts . | . . . Triggered . | . . . Disarmed . | . . . Reprogrammed . | . . . Reused . | . . . Traps Extracted . | . . . Installed . | . . . Triggered . | . . . Machines | -11 -10 -10 ---------- Run | Yrd Mat Min Machines Disabled . | . . . Max in Single Turn . | . . . Machines Repaired . | . . . Machines Dismantled . | . . . Machines Sabotaged . | . . . Overloaded Fab Kills . | . . . Hacking | -11 -10 -10 --------- Run | Yrd Mat Min Machines Accessed 4 | . 4 . Terminals 3 | . 3 . Fabricators . | . . . Repair Stations . | . . . Recycling Units 1 | . 1 . Scanalyzers . | . . . Garrison Access . | . . . Total Hacks 9 | . 9 . Successful 4 | . 4 . Failed 5 | . 5 . Catastrophic 1 | . 1 . Database Lockouts . | . . . Manual . | . . . Terminals 8 | . 8 . Fabricators . | . . . Repair Stations . | . . . Recycling Units 1 | . 1 . Scanalyzers . | . . . Garrison Access . | . . . Terminal Hacks 3 | . 3 . Branch Access Points 1 | . 1 . Locate Traps 1 | . 1 . Hauler Manifests 1 | . 1 . Fabricator Hacks . | . . . Repair Station Hacks . | . . . Recycling Unit Hacks 1 | . 1 . Report Inventory 1 | . 1 . Scanalyzer . | . . . Garrison Access Hacks . | . . . Unauthorized Hacks . | . . . Terminals . | . . . Fabricators . | . . . Repair Stations . | . . . Recycling Units . | . . . Scanalyzers . | . . . Garrison Access . | . . . Data Cores Recovered . | . . . Used . | . . . Hacking Detections 3 | . 3 . Full Trace Events . | . . . Feedback Events . | . . . Feedback Blocked . | . . . Robot Schematics Acquired . | . . . Robots Built . | . . . Authchips . | . . . Time . | . . . Total Robot Build Rating . | . . . Part Schematics Acquired . | . . . Parts Built . | . . . Authchips . | . . . Time . | . . . Total Part Build Rating . | . . . Parts Repaired . | . . . Time . | . . . Parts Recycled . | . . . Recycled Matter . | . . . Retrieved Matter . | . . . Retrieved Components . | . . . Parts Scanalyzed . | . . . Part Schematics Acquired . | . . . Parts Damaged . | . . . Bothacking | -11 -10 -10 ------------ Run | Yrd Mat Min Used RIF Installer . | . . . Robots Hacked . | . . . Non-combat . | . . . Combat . | . . . Robot Hacks Applied . | . . . Relay Couplers Released . | . . . Fabnet Peak Effective % . | . . . Robots Rewired . | . . . Allies Hacked . | . . . Hacks Repelled . | . . . Allies | -11 -10 -10 -------- Run | Yrd Mat Min Total Allies . | . . . Largest Group . | . . . Highest-Rated Group . | . . . Highest-Rated Ally . | . . . Total Orders . | . . . Ally Attacks . | . . . Total Damage . | . . . Kills . | . . . Allies Corrupted . | . . . Allies Melted . | . . . Intel | -11 -10 -10 ------- Run | Yrd Mat Min Robot Analysis Total . | . . . Derelict Logs Recovered 1 | . . 1 Drone Launches . | . . . Drone Recoveries . | . . . Exploration | -11 -10 -10 ------------- Run | Yrd Mat Min Turns Passed 728 | 65 437 226 Spaces Moved 621 | 62 393 166 Core 30 | 21 . 9 Treads . | . . . Legs . | . . . Wheels 591 | 41 393 157 Hover . | . . . Flight . | . . . Fastest Speed 50 | 50 80 80 Average Speed 82 | 69 80 94 Slowest Speed 100 | 80 80 100 Overloaded Moves . | . . . Propulsion Burnouts . | . . . Robots Hopped . | . . . Cave-ins Triggered . | . . . Exploration Rate (%) 33 | 4 62 33 Regions Visited 2 Branch Regions 1 Pre-discovered Areas 1 | . . 1 Known Exits Taken 1 | . 1 . Unknown Exits Taken 1 | 1 . . Scrap Searched 1 | . . 1 Spaces Dug . | . . . Terrain Destroyed . | . . . Melee . | . . . Projectile . | . . . AOE . | . . . Terrain Rammed . | . . . Walls Destroyed . | . . . Machines Disabled . | . . . Actions | -11 -10 -10 --------- Run | Yrd Mat Min Total 757 | 82 470 205 Wait 46 | . 37 9 Move 619 | 61 392 166 Hop . | . . . Pick Up 19 | 10 9 . Fast Attach 2 | 2 . . Attach 15 | 6 1 8 Detach . | . . . Swap 2 | 1 1 . Drop 6 | 2 4 . Fire 45 | . 26 19 Melee . | . . . Ram 3 | . . 3 Kick . | . . . Crush . | . . . Escape Stasis . | . . . Rewire . | . . . Trap . | . . . Miscellaneous . | . . . Route ------- -11/Scrapyard -10/Materials (discovered 3 exits: [*Mat x2] / *Min) -10/Mines (discovered 2 exits: [*Mat] / [*Exi]) History --------- Turn | Location | Event 3 | -11/Scrapyard | Discovered new exit (range 15) 66 | -11/Scrapyard | Entered Materials 82 | -10/Materials | Identified exit to Mines 219 | -10/Materials | Discovered new exit (range 5) 307 | -10/Materials | Build established: Mutant 403 | -10/Materials | Discovered new exit (range 12) 503 | -10/Materials | Entered Mines 596 | -10/Mines | Learned location of Storage (-7) 603 | -10/Mines | Discovered new exit (range 10) 636 | -10/Mines | Deemed a non-threat by the Exiles lab entrance 636 | -10/Mines | Discovered new exit (range 5) 675 | -10/Mines | Assembled infested the area 717 | -10/Mines | System corruption reached 10% 720 | -10/Mines | Core integrity fell below 50% 723 | -10/Mines | Core integrity fell below 20% 729 | -10/Mines | Destroyed by as-49936 with Assembled Maul Last Messages --------------- K-01 Serf collects debris. as-63819 destroyed. Slammed into K-01 Serf. System corrupted: Component data lost. Wheel destroyed. Assault Rifle destroyed. System corrupted by crushing effect (+3). System corrupted by crushing effect (+1). Knocked back. K-01 Serf destroyed. Mining Laser destroyed. T-07 Excavator destroyed. Mining Laser destroyed. Terrain Scanner destroyed. System corrupted by crushing effect (+3). System corrupted by crushing effect (+1). System corrupted: EM Pulse Gun failed to cycle. as-83466 destroyed. K-01 Serf destroyed. System corrupted: EM Pulse Gun rejected. Map ----- +----------------------------------------------------+ | ?????????????????????????????????????????????????? | | ?????????????????????????????????????????????????? | | ?????????????????????????????????????????????????? | | ?????????????????????????????????????????????????? | | ?????????????????????????????????????????????????? | | ?????????????????????????????????????????????????? | | ?????????????????????????????????????????????????? | | ?????????????????????????????????????????????????? | | ?????????????????????????????????????????????????? | | ?????????????????????????????????????????????????? | | ?????????????????????????????????? ??????????????? | | ?????????????????????????????????????????????????? | | ????????????????#?? #???????????????????????????? | | ???#??????????????? #???????????????????????????? | | ??????????#??#????? #???????????????????????????? | | ???#??????????????? #???????????????????????????? | | ####????????????#?# #??????????????? ???????????? | | ####???????????# #???????? ??????????????????? | | # ##??????????# #???????????????????????????? | | ?# #####?????## ####????#???????????????????? | | ## #????## %* ###########??????????????? | | # #????# = #??????????????? | | # ### ###### """ a #??????????????? | | # = ##?# """ a a##### #??????????????? | | ##??# """ aaa#???# #??????????????? | | = #?#?######## aa@##???# #???? ????????? | | #??##?# =|! aa##???# #??? ??????????? | | #[ ##?#???# ##### =%* !%a##### ###????????????? | | # ##???????????###! a #????????????? | | # ###?#?????????### #### #????????????? | | #=[ ##?#??##????#?## #??#### #??????? ?#??? | | [ ! #??# ########## #?????# #??????? ????? | | ### #?#???# #?????? ?????? | | ???# # ##????? #????????????? | | ???? ############## ######????? ????????????? | | ???? #???????????# #?????#??? ????????????? | | #???? #?????#?????# #????????? ????????????? | | ??? ? ############## #??#????? % ???????????? | | ????? ##?# #???????? ?#?????????? | | ??????##### ############???????## #???????????? | | ??? ???# #???#?????#???????#?# #??#????????? | | ????#??# ####??????????????????? ???????????? | | ?#??####%#?????????????????#???? #???????????? | | ?# ## #???#?????????????????? ##???????????? | | ?# ####??#?#????????????????? # ?????????????? | | ##### ######??????????????????? #? ?????????????? | | ??# #??#?#???????#????????? ?????????????? | | ?## """" #?????????????????????????????????????? | | ### """" #?????????????????????????????????????? | | # """" #???????#?????????????????????????????? | +----------------------------------------------------+ Best States ------------- Heat Dissipation 25 Energy Generation 10 Energy Capacity 250 Matter Stores 300 Matter Capacity 300 Sight Range 16 Terrain Scan Range 14 Terrain Scan Density 10 Evasion (%) 44 Recoil Reduction 2 Item Schematics ----------------- None Robot Schematics ------------------ None Fabricated ------------ Nothing Alien Tech Used ----------------- None Achievements -------------- None Challenges ------------ None Game ------ Seed PowerGreatEngine Manual? 0 Play Time 00:13:01 Cumulative 3.4 hours Start 2024.04.02 @ 20:02:05 End 2024.04.02 @ 20:12:10 Sessions 1 Manual Loads 0 Difficulty Rogue Special Mode None Game No. 8 Rogue 8 Adventurer 0 Explorer 0 Win Type - Total 0 Types 0/0/0/0/0/0/0/0/0 Lore% 9 Gallery% 7 Achievement% 9 Wizard Run 0 Options --------- Layout 1 ASCII 0 Keyboard 0 Movement Mouse Keybinds 0 Fullscreen 1 Font 32/SmallcapsGlow Map View 50x35 Zoom Use 0% Tactical HUD 0 Map Filters NONE Filters NONE Steam 1 RUN: c7816c54-3a37-426c-8c3f-80d8df6ec173